bitfinex/quotes_SOLUSD_20250622
["timestamp","ask_amount","ask_price","bid_price","bid_amount"]
[1750577715050,10.52990163,135.33,135.29,14.78305861]
[1750577715223,10.52990163,135.33,135.29,25.31296024]
[1750577715761,153.48,135.34,135.29,25.31296024]
[1750577715926,194.32990163,135.34,135.3,10.52990163]
[1750577716117,194.32990163,135.34,135.29,25.31296024]
[1750577716518,164.00990163,135.34,135.29,25.31296024]
[1750577717150,10.52990163,135.33,135.29,31.22618368]
[1750577717960,164.00990163,135.34,135.3,10.52990163]
[1750577718256,164.00990163,135.34,135.29,31.22618368]
[1750577718953,164.00990163,135.34,135.29,20.69628205]
[1750577719157,164.00990163,135.34,135.29,31.22618368]
[1750577719648,164.00990163,135.34,135.3,10.52990163]
[1750577720651,164.00990163,135.34,135.29,14.78305861]
[1750577720836,164.00990163,135.34,135.31,5.91234941]
[1750577721260,153.48,135.34,135.31,31.22312458]
[1750577721462,153.48,135.34,135.32,10.52990163]
[1750577721965,153.48,135.34,135.31,20.69322295]
[1750577722437,153.48,135.34,135.31,31.22312458]
[1750577726268,153.48,135.34,135.31,20.69322295]
[1750577726565,164.00990163,135.34,135.31,20.69322295]
[1750577726862,160.21365686,135.34,135.31,20.69322295]
[1750577727065,36.99365686,135.33,135.31,5.91234941]
[1750577727457,30.26,135.33,135.31,5.91234941]
[1750577728652,183.74,135.34,135.31,5.91234941]
[1750577729648,183.74,135.34,135.31,14.78087354]
[1750577730364,153.48,135.34,135.31,14.78087354]
[1750577733053,153.48,135.34,135.32,6.73365686]
[1750577733445,153.48,135.34,135.31,27.42687981]
[1750577735968,153.48,135.34,135.31,20.69322295]
[1750577736363,183.74,135.34,135.31,20.69322295]
[1750577738368,153.48,135.34,135.31,20.69322295]
[1750577740976,153.45380006,135.34,135.31,20.69322295]
[1750577747079,153.45380006,135.34,135.31,14.78087354]
[1750577748978,153.45380006,135.34,135.31,20.69322295]
[1750577749158,183.69380006,135.34,135.31,20.69322295]
[1750577749563,190.42745692,135.34,135.31,5.91234941]
[1750577749757,6.73365686,135.33,135.31,5.91234941]
[1750577750853,6.73365686,135.33,135.29,5.91322344]
[1750577755094,183.69380006,135.34,135.29,27.42993891]
[1750577755258,190.42745692,135.34,135.29,27.42993891]
[1750577755456,146.9,135.34,135.31,6.73365686]
[1750577755654,146.9,135.34,135.33,6.73365686]
[1750577755960,25.8018331,135.37,135.33,6.73365686]
[1750577756662,25.8018331,135.37,135.34,5.91103886]
[1750577759297,19.06817624,135.37,135.34,5.91103886]
[1750577760725,19.06817624,135.37,135.34,12.64469572]
[1750577762328,19.06817624,135.37,135.34,27.42229288]
[1750577763605,19.06817624,135.37,135.34,20.68863602]
[1750577764016,25.8018331,135.37,135.34,5.91103886]
[1750577764196,6.73365686,135.35,135.32,5.9119125]
[1750577764407,6.73365686,135.33,135.31,5.91234941]
[1750577764693,36.95365686,135.33,135.31,5.91234941]
[1750577765330,36.95365686,135.33,135.3,5.9127864]
[1750577766403,36.95365686,135.33,135.29,5.91322344]
[1750577766811,40.74371482,135.33,135.29,5.91322344]
[1750577767432,40.74371482,135.33,135.29,16.43693826]
[1750577768937,40.74371482,135.33,135.28,25.30701651]
[1750577771330,40.74371482,135.33,135.28,31.22067706]
[1750577773948,40.74371482,135.33,135.28,14.78330169]
[1750577774117,30.22,135.33,135.28,25.30701651]
[1750577774307,40.74371482,135.33,135.28,25.30701651]
[1750577775018,40.74371482,135.33,135.28,31.22067706]
[1750577776818,40.74371482,135.33,135.29,10.52371482]
[1750577777008,10.52371482,135.33,135.29,10.52371482]
[1750577778629,153.4,135.34,135.29,10.52371482]
[1750577778630,153.4,135.34,135.31,10.52371482]
[1750577778837,153.4,135.34,135.32,5.9119125]
[1750577785432,163.92371482,135.34,135.32,5.9119125]
[1750577785746,157.42371482,135.33,135.29,5.91322344]
[1750577785944,10.52371482,135.32,135.29,5.91322344]
[1750577786513,157.42371482,135.33,135.29,20.69628205]
[1750577787210,157.42371482,135.33,135.29,31.21999687]
[1750577788946,153.63493157,135.33,135.29,14.78305861]
[1750577790212,153.63493157,135.33,135.29,20.69628205]
[1750577796228,153.63493157,135.33,135.29,27.43121362]
[1750577796638,146.9,135.33,135.3,6.73493157]
[1750577798155,146.9,135.33,135.31,5.91234941]
[1750577798322,146.9,135.33,135.32,6.73493157]
[1750577799466,146.9,135.33,135.32,12.64684407]
[1750577802047,20.79347624,135.37,135.32,27.42662532]
[1750577802363,12.56817624,135.37,135.34,6.73493157]
[1750577803254,12.56817624,135.37,135.35,12.64553371]
[1750577803431,12.56817624,135.37,135.36,6.73493157]
[1750577804163,12.56817624,135.37,135.35,12.64553371]
[1750577804936,12.56817624,135.37,135.35,5.91060214]
[1750577806450,12.56817624,135.37,135.35,16.42516966]
[1750577809654,12.56817624,135.37,135.35,5.91060214]
[1750577809864,23.08274376,135.37,135.34,5.910984]
[1750577810160,40.71456752,135.36,135.34,5.910984]
[1750577810366,40.71456752,135.36,135.32,5.9119125]
[1750577810978,46.89386752,135.36,135.32,5.9119125]
[1750577811191,46.89386752,135.36,135.29,26.0]
[1750577811192,10.51456752,135.34,135.29,10.51456752]
[1750577811349,163.89456752,135.33,135.3,5.9127864]
[1750577811668,153.38,135.33,135.3,5.9127864]
[1750577811840,163.89456752,135.33,135.3,5.9127864]
[1750577812470,40.71456752,135.32,135.3,5.9127864]
[1750577812645,40.71456752,135.32,135.28,5.91366055]
[1750577814569,40.71456752,135.32,135.28,16.42822807]
[1750577815472,42.37496752,135.32,135.27,20.69915237]
[1750577815779,10.51456752,135.31,135.27,31.21371989]
[1750577817358,31.8604,135.32,135.27,20.69915237]
[1750577817669,10.51456752,135.31,135.27,20.69915237]
[1750577820271,31.8604,135.32,135.27,20.69915237]
[1750577820446,10.51456752,135.31,135.27,20.69915237]
[1750577821171,10.51456752,135.31,135.27,31.21371989]
[1750577821358,31.8604,135.32,135.27,31.21371989]
[1750577821882,10.51456752,135.31,135.27,31.21371989]
[1750577822580,10.51456752,135.3,135.27,5.91409773]
[1750577823152,146.9,135.29,135.27,5.91409773]
[1750577823464,187.63456752,135.29,135.26,10.70725625]
[1750577824274,10.51456752,135.28,135.26,4.79305194]
[1750577824482,146.9,135.27,135.26,4.79305194]
[1750577824780,153.38,135.27,135.26,4.79305194]
[1750577825985,65.86421638,135.27,135.26,4.79305194]
[1750577828291,1.568,135.23,135.19,5.91759745]
[1750577828494,1.568,135.23,135.18,14.79428842]
[1750577828495,7.6495,135.16,135.11,5.92110132]
[1750577828658,62.76,135.15,135.11,5.92110132]
[1750577829285,62.76,135.15,135.06,5.92286842]
[1750577829286,10.51456752,135.12,135.06,5.92286842]
[1750577829494,10.51456752,135.12,135.04,14.81020904]
[1750577829495,30.62,135.13,135.09,7.52761935]
[1750577829802,32.48,135.13,135.09,7.52761935]
[1750577829960,10.51456752,135.11,135.09,7.52761935]
[1750577830155,32.48,135.13,135.09,7.52761935]
[1750577830356,18.64964886,135.15,135.09,7.52761935]
[1750577830579,18.64964886,135.16,135.1,36.51456752]
[1750577830797,10.51456752,135.16,135.1,32.5459]
[1750577830986,18.64964886,135.18,135.11,10.51456752]
[1750577831192,26.86719874,135.19,135.1,32.5459]
[1750577831368,26.86719874,135.19,135.12,10.51456752]
[1750577831680,26.86719874,135.19,135.1,32.5459]
[1750577831864,10.51456752,135.16,135.11,16.43566884]
[1750577832069,18.64964886,135.18,135.11,16.43566884]
[1750577832270,10.51456752,135.16,135.11,16.43566884]
[1750577833003,19.14964886,135.18,135.13,5.92022496]
[1750577833166,10.51456752,135.16,135.13,5.92022496]
[1750577833567,10.51456752,135.17,135.13,5.92022496]
[1750577833984,32.02,135.18,135.13,16.43479248]
[1750577834196,11.01456752,135.18,135.14,10.51456752]
[1750577834898,26.86719874,135.19,135.16,10.51456752]
[1750577835066,26.86719874,135.19,135.17,16.43304055]
[1750577835676,26.86719874,135.19,135.18,10.51456752]
[1750577836994,26.86719874,135.19,135.18,16.43260273]
[1750577840814,26.86719874,135.19,135.18,5.91803521]
[1750577841784,26.86719874,135.19,135.16,16.43347844]
[1750577841987,26.86719874,135.19,135.16,31.23075574]
[1750577842370,26.86719874,135.19,135.16,20.71618822]
[1750577842565,26.86719874,135.19,135.17,10.51456752]
[1750577844498,26.86719874,135.19,135.18,5.91803521]
[1750577846485,26.86719874,135.19,135.16,31.23075574]
[1750577846993,26.86719874,135.19,135.16,20.71618822]
[1750577847171,26.86719874,135.19,135.16,31.23075574]
[1750577847879,26.86719874,135.19,135.16,20.71618822]
[1750577848075,26.86719874,135.19,135.16,31.23075574]
[1750577850076,26.86719874,135.19,135.16,14.7972773]
[1750577850280,26.86719874,135.19,135.16,25.31184482]
[1750577850501,10.51456752,135.2,135.16,25.31184482]
[1750577851493,10.51456752,135.2,135.16,31.23075574]
[1750577851993,146.9,135.21,135.16,31.23075574]
[1750577852200,157.41456752,135.21,135.16,20.71618822]
[1750577852402,157.41456752,135.21,135.16,31.23075574]
[1750577852695,146.9,135.2,135.16,31.23075574]
[1750577852894,157.41456752,135.2,135.16,31.23075574]
[1750577853080,10.51456752,135.19,135.16,5.91891092]
[1750577853607,10.51456752,135.18,135.14,5.91978688]
[1750577856286,10.51456752,135.18,135.14,31.23382161]
[1750577856795,10.51456752,135.18,135.14,20.71925409]
[1750577856994,10.51456752,135.18,135.14,31.23382161]
[1750577857405,10.51456752,135.18,135.14,20.71925409]
[1750577858086,38.42,135.19,135.14,25.31403473]
[1750577858313,10.51456752,135.18,135.14,25.31403473]
[1750577859130,10.51456752,135.18,135.14,14.79946721]
[1750577859309,10.51456752,135.18,135.14,20.71925409]
[1750577860314,0.5,135.17,135.14,20.71925409]
[1750577861121,0.5,135.17,135.14,31.23382161]
[1750577861607,10.51456752,135.18,135.14,31.23382161]
[1750577862914,48.93456752,135.19,135.14,31.23382161]
[1750577863125,10.51456752,135.17,135.14,20.71925409]
[1750577863324,146.9,135.18,135.14,20.71925409]
[1750577863506,146.9,135.18,135.15,10.51456752]
[1750577863899,146.9,135.18,135.14,20.71925409]
[1750577864118,146.9,135.18,135.15,10.51456752]
[1750577864519,146.9,135.18,135.16,5.91891092]
[1750577865805,146.9,135.18,135.16,16.43347844]
[1750577866001,146.9,135.18,135.16,5.91891092]
[1750577866202,146.9,135.18,135.16,16.43347844]
[1750577866399,6.96,135.19,135.17,10.51456752]
[1750577866697,157.41456752,135.21,135.17,10.51456752]
[1750577867099,146.9,135.21,135.17,10.51456752]
[1750577867520,146.9,135.21,135.16,20.71618822]
[1750577867521,157.41456752,135.21,135.16,20.71618822]
[1750577867695,157.41456752,135.21,135.17,10.51456752]
[1750577867894,10.51456752,135.2,135.16,31.23075574]
[1750577868809,10.51456752,135.2,135.16,20.71618822]
[1750577869015,10.51456752,135.2,135.16,31.23075574]
[1750577869510,146.9,135.21,135.18,5.91803521]
[1750577869720,146.9,135.21,135.18,20.71312324]
[1750577869936,146.9,135.21,135.18,31.22769076]
[1750577870103,146.9,135.21,135.18,20.71312324]
[1750577873206,146.9,135.21,135.18,31.22769076]
[1750577875332,146.9,135.21,135.18,14.79508803]
[1750577875530,146.9,135.21,135.18,25.30965555]
[1750577876432,146.9,135.21,135.18,14.79508803]
[1750577876741,146.9,135.21,135.18,25.30965555]
[1750577876925,157.41456752,135.21,135.18,14.79508803]
[1750577878126,157.41456752,135.21,135.18,20.71312324]
[1750577879127,188.63456752,135.21,135.18,20.71312324]
[1750577879428,188.63456752,135.21,135.16,5.91891092]
[1750577879632,188.63456752,135.21,135.16,16.43347844]
[1750577879633,10.51456752,135.2,135.16,16.43347844]
[1750577879836,10.51456752,135.19,135.16,5.91891092]
[1750577880130,10.51456752,135.17,135.16,5.91891092]
[1750577880426,41.71456752,135.17,135.16,5.91891092]
[1750577881232,31.2,135.17,135.16,5.91891092]
[1750577881919,31.2,135.17,135.15,5.91934887]
[1750577883510,12.02946752,135.19,135.15,31.23228856]
[1750577883829,38.38,135.19,135.16,10.51456752]
[1750577884136,38.38,135.19,135.15,20.71772104]
[1750577884137,7.16,135.19,135.17,16.43304055]
[1750577892056,157.41456752,135.21,135.17,16.43304055]
[1750577892227,31.18,135.2,135.17,16.43304055]
[1750577897767,146.9,135.21,135.19,10.51456752]
[1750577897928,146.9,135.21,135.2,10.51456752]
[1750577899858,146.9,135.21,135.2,16.43172728]
[1750577908866,7.04,135.23,135.2,31.22462668]
[1750577909076,7.04,135.23,135.21,10.51456752]
[1750577909251,7.04,135.23,135.2,20.71005916]
[1750577909574,7.04,135.23,135.21,10.51456752]
[1750577909951,7.04,135.23,135.2,31.22462668]
[1750577910853,31.0,135.22,135.19,10.51456752]
[1750577911348,146.9,135.21,135.18,31.22769076]
[1750577911550,146.9,135.21,135.19,10.51456752]
[1750577912770,146.9,135.21,135.2,5.91715976]
[1750577914570,146.9,135.21,135.18,14.79508803]
[1750577914757,31.0,135.2,135.18,25.30965555]
[1750577915282,31.0,135.2,135.16,5.91891092]
[1750577915446,10.51456752,135.19,135.16,5.91891092]
[1750577915644,41.49456752,135.18,135.16,5.91891092]
[1750577915847,30.98,135.18,135.16,5.91891092]
[1750577916880,30.98,135.18,135.14,10.51456752]
[1750577916881,41.49456752,135.18,135.15,5.91934887]
[1750577917584,157.41456752,135.17,135.15,5.91934887]
[1750577917750,177.92,135.16,135.15,5.91934887]
[1750577918558,177.92,135.16,135.13,16.43479248]
[1750577920150,177.92,135.16,135.13,5.92022496]
[1750577920664,177.92,135.16,135.13,16.43479248]
[1750577920855,146.9,135.16,135.15,10.51456752]
[1750577922066,146.9,135.16,135.15,16.43391639]
[1750577922261,177.88,135.16,135.15,5.91934887]
[1750577924061,146.9,135.15,135.14,5.91978688]
[1750577925379,146.9,135.14,135.13,5.92022496]
[1750577925572,146.9,135.14,135.11,5.92110132]
[1750577925573,177.86,135.14,135.11,5.92110132]
[1750577926153,10.51456752,135.13,135.11,5.92110132]
[1750577926490,177.86,135.12,135.11,5.92110132]
[1750577927385,177.86,135.12,135.09,1.547325]
[1750577927386,177.86,135.12,135.1,5.9215396]
[1750577928985,177.86,135.12,135.1,16.43610712]
[1750577929290,146.9,135.12,135.1,16.43610712]
[1750577929966,146.9,135.12,135.11,10.51456752]
[1750577931275,146.9,135.12,135.11,16.43566884]
[1750577931783,146.9,135.12,135.11,5.92110132]
[1750577934578,146.9,135.12,135.1,5.9215396]
[1750577934981,177.8,135.12,135.1,5.9215396]
[1750577937193,146.9,135.11,135.1,5.9215396]
[1750577937493,146.9,135.11,135.09,7.46918483]
[1750577939788,30.88,135.1,135.09,7.46918483]
[1750577940587,49.52964886,135.1,135.09,1.547325]
[1750577940984,60.04421638,135.1,135.09,1.547325]
[1750577941200,60.54421638,135.1,135.09,1.547325]
[1750577943278,10.51456752,135.11,135.09,7.46930294]
[1750577943477,30.86,135.1,135.09,7.46930294]
[1750577947007,30.84,135.11,135.09,17.98387046]
[1750577948822,30.84,135.11,135.09,7.46930294]
[1750577949586,41.35456752,135.11,135.09,7.46930294]
[1750577951408,30.84,135.11,135.09,7.46930294]
[1750577960991,10.51456752,135.12,135.09,7.46930294]
[1750577961192,30.78,135.11,135.09,7.46930294]
[1750577961718,10.51456752,135.12,135.09,7.46930294]
[1750577961890,30.78,135.11,135.09,7.46930294]
[1750577964511,41.29456752,135.11,135.09,7.46930294]
[1750577965327,30.78,135.11,135.09,7.46930294]
[1750577966814,26.0,135.07,135.04,5.92412999]
[1750577967001,31.34,135.06,135.04,5.92412999]
[1750577967622,155.0687,135.1,135.04,5.92412999]
[1750577967922,146.9,135.1,135.05,10.51456752]
[1750577968098,146.9,135.1,135.06,10.51456752]
[1750577968296,146.9,135.1,135.08,5.92241634]
[1750577968626,31.34,135.11,135.08,5.92241634]
[1750577968932,31.34,135.11,135.04,14.81042654]
[1750577968933,31.34,135.11,135.05,16.43829947]
[1750577969118,10.51456752,135.1,135.05,16.43829947]
[1750577969623,18.64964886,135.1,135.05,16.43829947]
[1750577969827,10.51456752,135.09,135.05,16.43829947]
[1750577970196,10.51456752,135.08,135.05,5.92373195]
[1750577971224,18.64964886,135.08,135.05,5.92373195]
[1750577971399,29.16421638,135.08,135.05,5.92373195]
[1750577971826,10.51456752,135.07,135.03,10.77111946]
[1750577972136,31.62,135.07,135.03,21.28568698]
[1750577972432,31.62,135.07,135.04,10.51456752]
[1750577972636,68.11456752,135.09,135.04,10.51456752]
[1750577972944,57.6,135.09,135.04,10.51456752]
[1750577973154,57.6,135.09,135.03,4.84690646]
[1750577973155,26.0,135.05,135.03,4.84690646]
[1750577973454,26.0,135.05,135.03,10.77146328]
[1750577974319,36.51456752,135.05,135.03,4.84690646]
[1750577974523,36.51456752,135.05,135.03,10.77148928]
[1750577976818,26.0,135.05,135.03,10.77148928]
[1750577977203,31.72,135.06,135.03,10.77148928]
[1750577977522,42.23456752,135.06,135.03,10.77148928]
[1750577978205,31.72,135.06,135.03,10.77148928]
[1750577978641,42.23456752,135.06,135.03,10.77148928]
[1750577979326,31.72,135.06,135.03,10.77148928]
[1750577979827,42.23456752,135.06,135.03,10.77148928]
[1750577980831,146.9,135.05,135.03,10.77148928]
[1750577981744,29.16421638,135.04,135.03,4.84690646]
[1750577981912,61.10421638,135.04,135.03,4.84690646]
[1750577982113,50.58964886,135.04,135.03,4.84690646]
[1750577982731,61.10421638,135.04,135.03,4.84690646]
[1750577983740,50.58964886,135.04,135.03,4.84690646]
[1750577983938,61.10421638,135.04,135.03,4.84690646]
[1750577986448,50.58964886,135.04,135.03,4.84690646]
[1750577986639,61.10421638,135.04,135.03,4.84690646]
[1750577987735,50.58964886,135.04,135.03,4.84690646]
[1750577987938,61.10421638,135.04,135.03,4.84690646]
[1750577988844,61.60421638,135.04,135.03,4.84690646]
[1750577989661,51.08964886,135.04,135.03,4.84690646]
[1750577989957,61.60421638,135.04,135.03,4.84690646]
[1750577999960,51.08964886,135.04,135.03,4.84690646]
[1750578000164,61.60421638,135.04,135.03,4.84690646]
[1750578001446,67.52838699,135.04,135.03,4.84690646]
[1750578002674,78.04295451,135.04,135.03,4.84690646]
[1750578002860,61.60421638,135.04,135.03,4.84690646]
[1750578003447,69.14421638,135.04,135.03,4.84690646]
[1750578003843,95.14421638,135.04,135.03,4.84690646]
[1750578005566,95.12421638,135.04,135.03,4.84690646]
[1750578005958,34.08,135.04,135.03,10.7715158]
[1750578006156,39.94,135.04,135.03,10.7715158]
[1750578006557,8.08,135.04,135.03,10.7715158]
[1750578006869,7.58,135.04,135.03,10.7715158]
[1750578007754,7.58,135.04,135.03,21.28608332]
[1750578008160,7.58,135.09,135.03,36.09760668]
[1750578008367,7.58,135.09,135.05,10.51456752]
[1750578008368,31.84,135.08,135.05,10.51456752]
[1750578008576,75.93456752,135.09,135.05,10.51456752]
[1750578009076,65.42,135.09,135.06,10.51456752]
[1750578009373,180.48,135.09,135.07,5.92285481]
[1750578009577,154.48,135.09,135.07,16.43742233]
[1750578009951,154.48,135.09,135.07,17.95642233]
[1750578011182,146.9,135.09,135.08,10.51456752]
[1750578011474,11.55622446,135.1,135.09,5.92197794]
[1750578012064,11.55622446,135.1,135.08,5.92229126]
[1750578013773,43.37622446,135.1,135.08,5.92229126]
[1750578015369,190.27622446,135.1,135.08,5.92229126]
[1750578016976,0.5,135.09,135.08,5.92229126]
[1750578017571,158.45622446,135.1,135.08,16.43685878]
[1750578017767,146.9,135.1,135.09,10.51456752]
[1750578019271,146.9,135.1,135.08,5.92229126]
[1750578019580,146.9,135.1,135.09,16.43654546]
[1750578021280,146.9,135.13,135.09,16.43654546]
[1750578021464,178.66,135.13,135.08,5.92241634]
[1750578021661,178.66,135.13,135.1,10.51456752]
[1750578022458,178.66,135.13,135.09,10.51456752]
[1750578023475,178.66,135.13,135.1,5.9215396]
[1750578024879,146.9,135.13,135.1,10.51456752]
[1750578025083,178.58,135.13,135.08,20.7284572]
[1750578025381,146.9,135.13,135.1,10.51456752]
[1750578025567,178.58,135.13,135.1,10.51456752]
[1750578026560,178.58,135.13,135.11,5.92110132]
[1750578028889,178.56,135.13,135.11,5.92110132]
[1750578032187,146.9,135.13,135.11,16.43566884]
[1750578034294,146.9,135.13,135.08,5.92241634]
[1750578034295,157.41456752,135.13,135.08,5.92241634]
[1750578034590,10.51456752,135.11,135.08,5.92241634]
[1750578034794,31.56,135.1,135.08,5.92241634]
[1750578035779,31.54,135.11,135.09,10.51456752]
[1750578036089,178.44,135.12,135.09,10.51456752]
[1750578036295,178.44,135.12,135.1,5.9215396]
[1750578041021,6.78740286,135.11,135.1,5.9215396]
[1750578041089,178.44,135.12,135.1,5.9215396]
[1750578041491,178.44,135.12,135.1,16.43610712]
[1750578041886,146.9,135.12,135.1,16.43610712]
[1750578043397,146.9,135.12,135.08,20.7284572]
[1750578043897,146.9,135.12,135.09,10.51456752]
[1750578044997,146.9,135.12,135.1,5.9215396]
[1750578048804,146.9,135.12,135.09,6.75484571]
[1750578050292,146.9,135.12,135.1,5.9215396]
[1750578052096,38.09484571,135.11,135.08,5.92241634]
[1750578052408,6.75484571,135.1,135.08,5.92241634]
[1750578052590,31.34,135.09,135.08,5.92241634]
[1750578052789,31.34,135.09,135.06,5.92329335]
[1750578053011,157.460374,135.08,135.05,5.92367871]
[1750578053216,50.1205887,135.11,135.05,5.92367871]
[1750578053217,188.800374,135.07,135.05,5.92367871]
[1750578053803,188.800374,135.07,135.04,5.92417061]
[1750578054095,157.460374,135.06,135.04,5.92417061]
[1750578054317,31.34,135.05,135.04,5.92417061]
[1750578057388,146.9,135.06,135.04,5.92417061]
[1750578057389,178.22,135.06,135.04,5.92417061]
[1750578061602,188.780374,135.06,135.04,5.92417061]
[1750578061924,10.560374,135.05,135.03,10.77143019]
[1750578062095,31.28,135.04,135.03,10.77143019]
[1750578062721,31.28,135.04,135.03,21.33180419]
[1750578062925,31.28,135.05,135.03,10.77143019]
[1750578063825,31.28,135.05,135.03,21.33180419]
[1750578064334,146.9,135.06,135.03,25.58295355]
[1750578064620,146.9,135.06,135.03,36.14332755]
[1750578068423,146.9,135.06,135.04,10.560374]
[1750578068720,146.9,135.06,135.03,25.58295355]
[1750578069100,146.9,135.06,135.04,10.560374]
[1750578070225,146.9,135.06,135.03,25.58295355]
[1750578070530,178.14,135.06,135.04,10.560374]
[1750578071531,146.9,135.06,135.04,10.560374]
[1750578072630,146.9,135.06,135.05,5.92373195]
[1750578074112,146.9,135.06,135.04,5.92417061]
[1750578075510,146.9,135.06,135.04,16.48454461]
[1750578077908,146.9,135.06,135.04,5.92417061]
[1750578078112,146.9,135.06,135.04,16.48454461]
[1750578079239,146.9,135.06,135.04,5.92417061]
[1750578079747,146.9,135.06,135.04,16.48454461]
[1750578080840,146.9,135.06,135.04,12.68455665]
[1750578082341,146.9,135.06,135.04,5.92417061]
[1750578082549,146.9,135.06,135.04,12.68455665]
[1750578083142,146.9,135.06,135.04,5.92417061]
[1750578083441,146.9,135.06,135.04,12.68455665]
[1750578083644,146.9,135.06,135.04,5.92417061]
[1750578084146,31.1,135.05,135.04,5.92417061]
[1750578088832,146.9,135.06,135.04,5.92417061]
[1750578089142,31.08,135.05,135.04,5.92417061]
[1750578090741,177.94,135.06,135.04,5.92417061]
[1750578091318,177.94,135.06,135.04,16.48831709]
[1750578091720,164.48414648,135.1,135.05,10.56414648]
[1750578091922,146.9,135.09,135.07,10.56414648]
[1750578092220,177.94,135.09,135.07,10.56414648]
[1750578092419,146.9,135.09,135.08,10.56414648]
[1750578093156,146.9,135.09,135.08,16.48656282]
[1750578093322,146.9,135.09,135.08,5.92241634]
[1750578093653,146.9,135.09,135.08,16.48656282]
[1750578097252,7.02,135.1,135.08,16.48656282]
[1750578097440,38.0,135.1,135.09,10.56414648]
[1750578097638,7.02,135.1,135.09,10.56414648]
[1750578098248,7.02,135.1,135.08,5.92241634]
[1750578098458,7.02,135.1,135.08,16.48656282]
[1750578100456,30.96,135.09,135.05,1.6072]
[1750578100657,10.56414648,135.07,135.04,5.92417061]
[1750578100842,30.94,135.06,135.04,5.92417061]
[1750578101165,30.96,135.05,135.04,5.92417061]
[1750578104058,30.96,135.05,135.03,10.771423]
[1750578104059,41.52414648,135.05,135.03,10.771423]
[1750578104444,30.96,135.05,135.03,10.771423]
[1750578105167,183.11379534,135.04,135.03,4.84690646]
[1750578106157,36.21379534,135.04,135.03,4.84690646]
[1750578111367,42.13796595,135.04,135.03,4.84690646]
[1750578111970,36.21379534,135.04,135.03,4.84690646]
[1750578116870,29.21379534,135.04,135.03,4.84690646]
[1750578117049,67.01379534,135.04,135.03,4.84690646]
[1750578117475,48.36414648,135.04,135.03,4.84690646]
[1750578117684,48.40414648,135.04,135.03,10.7715158]
[1750578118052,37.84,135.04,135.03,10.7715158]
[1750578118581,37.84,135.04,135.03,4.84690646]
[1750578119175,48.40414648,135.04,135.03,4.84690646]
[1750578120307,67.05379534,135.04,135.03,4.84690646]
[1750578122279,37.82,135.04,135.03,4.84690646]
[1750578122478,48.38414648,135.04,135.03,4.84690646]
[1750578122714,48.38414648,135.04,135.03,10.7715158]
[1750578123194,48.38414648,135.04,135.03,4.84690646]
[1750578123909,37.82,135.04,135.03,4.84690646]
[1750578124078,48.38414648,135.04,135.03,10.7715158]
[1750578124613,48.38414648,135.04,135.03,4.84690646]
[1750578127201,48.38414648,135.04,135.03,10.7715158]
[1750578128015,48.36414648,135.04,135.03,10.7715158]
[1750578128835,37.8,135.04,135.03,10.7715158]
[1750578131830,48.36414648,135.04,135.03,4.84690646]
[1750578132027,37.8,135.04,135.03,4.84690646]
[1750578132234,48.36414648,135.04,135.03,4.84690646]
[1750578132804,37.8,135.04,135.03,4.84690646]
[1750578133005,48.36414648,135.04,135.03,4.84690646]
[1750578134315,37.8,135.04,135.03,4.84690646]
[1750578134509,37.8,135.04,135.03,10.7715158]
[1750578136615,48.36414648,135.04,135.03,10.7715158]
[1750578136818,48.36414648,135.04,135.03,4.84690646]
[1750578140544,67.01379534,135.04,135.03,4.84690646]
[1750578141041,90.59677467,135.04,135.03,4.84690646]
[1750578141533,80.03262819,135.04,135.03,4.84690646]
[1750578141837,67.01379534,135.04,135.03,4.84690646]
[1750578142029,72.93796595,135.04,135.03,1e-08]
[1750578142229,88.95270392,135.04,135.03,1e-08]
[1750578144027,94.80963335,135.04,135.03,1e-08]
[1750578144657,18.64964886,135.0,134.96,5.92768227]
[1750578144834,41.48414648,134.99,134.96,5.92768227]
[1750578145148,30.92,134.99,134.96,5.92768227]
[1750578145342,41.48414648,134.99,134.96,5.92768227]
[1750578146953,165.54964886,135.0,134.96,5.92768227]
[1750578146954,157.46414648,135.0,134.96,16.49182875]
[1750578147123,30.92,134.99,134.96,16.49182875]
[1750578150350,146.9,135.0,134.98,10.56414648]
[1750578150555,30.92,135.02,134.99,10.56414648]
[1750578150734,157.46414648,135.03,134.98,1.6162]